bitfinex-derivatives/quotes_BTCF0:USTF0_20241218
["timestamp","ask_amount","ask_price","bid_price","bid_amount"]
[1734558616093,0.11673946,101100.0,101090.0,0.45233052]
[1734558616996,0.11673946,101100.0,101090.0,0.09153052]
[1734558617598,0.11673946,101100.0,101090.0,0.45233052]
[1734558617805,0.06106503,101100.0,101090.0,0.59314434]
[1734558617999,0.06106503,101100.0,101090.0,0.23234434]
[1734558618202,0.06106503,101100.0,101090.0,0.45233052]
[1734558618409,0.06106503,101100.0,101090.0,0.40913052]
[1734558618591,0.16762973,101100.0,101080.0,0.48450361]
[1734558618790,0.52842973,101100.0,101080.0,0.1132]
[1734558619104,0.049493,101090.0,101080.0,0.1132]
[1734558619297,0.410293,101090.0,101080.0,0.1132]
[1734558619603,0.049497,101080.0,101070.0,0.049502]
[1734558620800,0.22501666,101080.0,101070.0,0.049502]
[1734558621002,0.58581666,101080.0,101070.0,0.049502]
[1734558621505,0.58681666,101080.0,101070.0,0.049502]
[1734558623993,0.049502,101070.0,101060.0,0.15608986]
[1734558624298,0.41038278,101070.0,101060.0,0.10658386]
[1734558624602,0.36088078,101070.0,101060.0,0.15659086]
[1734558625310,0.58590244,101070.0,101060.0,0.15659086]
[1734558625499,0.58590244,101070.0,101060.0,0.15609086]
[1734558626107,0.41038278,101070.0,101060.0,0.15609086]
[1734558626400,0.36088078,101070.0,101060.0,0.29690468]
[1734558626598,0.04958278,101070.0,101060.0,0.51460468]
[1734558627000,0.04958278,101070.0,101060.0,0.87540468]
[1734558627001,0.16770642,101070.0,101060.0,0.87540468]
[1734558627201,0.11820442,101070.0,101060.0,0.87540468]
[1734558627405,0.11820442,101070.0,101060.0,0.51460468]
[1734558627706,0.06251372,101070.0,101060.0,0.92246623]
[1734558628503,0.06251372,101070.0,101060.0,0.96319132]
[1734558628701,0.06257865,101070.0,101060.0,0.96319132]
[1734558629105,6.493e-05,101070.0,101060.0,0.96319132]
[1734558629294,6.493e-05,101070.0,101060.0,1.26319132]
[1734558630510,6.493e-05,101070.0,101060.0,1.26269132]
[1734558631705,6.493e-05,101070.0,101060.0,1.273591]
[1734558632103,6.493e-05,101070.0,101060.0,1.22679334]
[1734558632805,0.66554078,101100.0,101090.0,0.049493]
[1734558632806,0.58580966,101100.0,101090.0,0.049493]
[1734558633910,0.58780966,101100.0,101090.0,0.049493]
[1734558634211,0.59180966,101100.0,101090.0,0.049493]
[1734558634402,0.18151966,101100.0,101090.0,0.049493]
[1734558634601,0.18151966,101100.0,101090.0,0.50430916]
[1734558634913,0.18151966,101100.0,101090.0,1.19939711]
[1734558635095,0.02351966,101100.0,101090.0,1.19939711]
[1734558635298,6.6e-07,101100.0,101090.0,1.19939711]
[1734558635610,0.20477294,101110.0,101100.0,0.049488]
[1734558635903,0.0005,101120.0,101100.0,0.68600827]
[1734558636105,0.0005,101120.0,101110.0,0.410283]
[1734558636500,0.049478,101120.0,101110.0,0.049483]
[1734558637908,0.052478,101120.0,101110.0,0.049483]
[1734558638207,0.003,101120.0,101110.0,0.410283]
[1734558638512,0.005,101120.0,101110.0,0.410283]
[1734558639713,0.054478,101120.0,101110.0,0.410283]
[1734558642504,0.054478,101120.0,101110.0,0.049483]
[1734558642707,0.415278,101120.0,101110.0,0.049483]
[1734558642904,0.054478,101120.0,101110.0,0.049483]
[1734558643100,0.005,101120.0,101110.0,0.55119836]
[1734558643909,0.005,101120.0,101110.0,0.59836625]
[1734558645899,0.005,101120.0,101110.0,0.45745089]
[1734558646715,0.005,101120.0,101110.0,0.74936931]
[1734558647418,0.005,101120.0,101110.0,0.89028467]
[1734558647918,0.005,101120.0,101110.0,0.59836625]
[1734558649003,0.005,101120.0,101110.0,0.89028467]
[1734558650213,0.005,101120.0,101110.0,0.59836625]
[1734558651505,0.005,101120.0,101110.0,0.45745089]
[1734558651709,0.005,101120.0,101110.0,0.410283]
[1734558651910,0.054478,101120.0,101110.0,0.410283]
[1734558652112,0.054478,101120.0,101110.0,0.049483]
[1734558653313,0.005,101120.0,101110.0,0.55119836]
[1734558653621,0.005,101120.0,101110.0,0.59838198]
[1734558655219,0.005,101120.0,101110.0,0.89838198]
[1734558655415,0.005,101120.0,101110.0,0.59838198]
[1734558656011,0.005,101120.0,101110.0,0.89838198]
[1734558656410,0.005,101120.0,101110.0,0.59838198]
[1734558656611,0.005,101120.0,101110.0,0.89838198]
[1734558656923,0.0005,101140.0,101130.0,0.049473]
[1734558657120,0.0005,101140.0,101130.0,0.410273]
[1734558657311,0.0005,101140.0,101130.0,0.049473]
[1734558657506,0.773532,101150.0,101120.0,0.85079236]
[1734558657711,0.724065,101150.0,101140.0,0.049468]
[1734558658522,0.73514667,101150.0,101140.0,0.049468]
[1734558659521,0.73464667,101150.0,101140.0,0.049468]
[1734558660223,0.049473,101140.0,101130.0,0.049472]
[1734558660420,0.410273,101140.0,101130.0,0.049472]
[1734558660621,0.049473,101140.0,101130.0,0.049472]
[1734558661223,0.410273,101140.0,101130.0,0.049472]
[1734558661524,0.50518927,101140.0,101130.0,0.049472]
[1734558661711,0.049473,101130.0,101120.0,0.3415209]
[1734558661918,0.410273,101130.0,101120.0,0.3415209]
[1734558662116,0.05347,101140.0,101130.0,0.049473]
[1734558663018,0.41127,101140.0,101130.0,0.049473]
[1734558663226,0.41027,101140.0,101130.0,0.049473]
[1734558663625,0.41327,101140.0,101130.0,0.049473]
[1734558663927,0.41527,101140.0,101130.0,0.049473]
[1734558664221,0.005,101140.0,101130.0,0.14338927]
[1734558664428,0.005,101140.0,101130.0,0.74238634]
[1734558664619,0.08847605,101150.0,101140.0,0.049468]
[1734558664928,0.08847605,101150.0,101140.0,0.58933255]
[1734558665731,0.003,101150.0,101140.0,0.94127298]
[1734558666327,0.004,101150.0,101140.0,0.94127298]
[1734558667533,0.004,101150.0,101140.0,0.84735671]
[1734558667727,0.004,101150.0,101140.0,0.48655671]
[1734558668032,0.21053839,101170.0,101140.0,1.2033055]
[1734558668329,0.21053839,101170.0,101160.0,0.50417427]
[1734558668330,0.09847605,101170.0,101160.0,0.50417427]
[1734558668623,0.09847605,101170.0,101160.0,0.55135507]
[1734558668830,0.09847605,101170.0,101160.0,0.5612388]
[1734558669034,0.09847605,101170.0,101160.0,0.0966388]
[1734558669236,0.011,101170.0,101160.0,0.74098303]
[1734558669827,0.011,101170.0,101160.0,1.10278303]
[1734558670033,0.01,101170.0,101160.0,0.0976388]
[1734558670325,0.01,101170.0,101160.0,0.55235507]
[1734558670527,0.0105,101170.0,101160.0,0.55235507]
[1734558671635,0.01,101170.0,101160.0,0.55235507]
[1734558672734,0.0105,101170.0,101160.0,0.55235507]
[1734558673329,0.420753,101170.0,101160.0,0.0976388]
[1734558673533,0.51416927,101170.0,101160.0,0.001]
[1734558673731,0.71386927,101170.0,101160.0,0.001]
[1734558674033,0.619953,101170.0,101160.0,0.001]
[1734558674629,0.620453,101170.0,101160.0,0.001]
[1734558674831,0.571,101170.0,101150.0,0.049461]
[1734558675141,0.622454,101170.0,101160.0,0.049458]
[1734558675336,0.71093005,101170.0,101160.0,0.049458]
[1734558675541,0.71193005,101170.0,101160.0,0.049458]
[1734558675837,0.35113005,101170.0,101160.0,0.049458]
[1734558676038,0.71193005,101170.0,101160.0,0.049458]
[1734558676235,0.35113005,101170.0,101160.0,0.049458]
[1734558676438,0.71193005,101170.0,101160.0,0.049458]
[1734558676641,0.71143005,101170.0,101160.0,0.049458]
[1734558676842,0.622954,101170.0,101160.0,0.049458]
[1734558678037,0.620954,101170.0,101160.0,0.049458]
[1734558678340,0.622954,101170.0,101160.0,0.049458]
[1734558679146,0.262154,101170.0,101160.0,0.049458]
[1734558679541,0.1085,101170.0,101160.0,0.049458]
[1734558679740,0.013,101170.0,101160.0,0.14337427]
[1734558679937,0.013,101170.0,101160.0,0.50417427]
[1734558680137,0.013,101170.0,101160.0,0.60587427]
[1734558681444,0.01,101170.0,101160.0,0.60687427]
[1734558682035,0.01,101170.0,101160.0,0.81587427]
[1734558682641,0.01,101170.0,101160.0,0.86294068]
[1734558683436,0.08847605,101190.0,101160.0,1.20979054]
[1734558683638,0.08897605,101190.0,101180.0,0.50416527]
[1734558683943,0.08897605,101190.0,101180.0,0.14336527]
[1734558684138,0.0005,101190.0,101180.0,0.50416527]
[1734558684645,0.1,101200.0,101190.0,0.049444]
[1734558684838,0.1,101200.0,101190.0,0.154144]
[1734558685342,0.55799555,101210.0,101190.0,0.154144]
[1734558685538,0.049439,101200.0,101190.0,0.154144]
[1734558685841,0.049439,101200.0,101180.0,0.50416527]
[1734558685842,0.049446,101190.0,101180.0,0.049447]
[1734558686143,0.410246,101190.0,101180.0,0.049447]
[1734558686539,0.04945,101180.0,101170.0,0.049452]
[1734558688051,0.05145,101180.0,101170.0,0.049452]
[1734558689339,0.05245,101180.0,101170.0,0.049452]
[1734558693441,0.05245,101180.0,101170.0,0.09658274]
[1734558693943,0.05245,101180.0,101170.0,0.09659736]
[1734558694148,0.41325,101180.0,101170.0,0.09659736]
[1734558694342,0.41325,101180.0,101170.0,0.049452]
[1734558694941,0.05245,101180.0,101170.0,0.09661773]
[1734558695948,0.003,101180.0,101170.0,0.551334]
[1734558696534,0.08847605,101190.0,101180.0,0.049449]
[1734558696751,0.20652218,101200.0,101180.0,0.551331]
[1734558697051,0.20652218,101200.0,101190.0,0.80056027]
[1734558697236,0.20652218,101200.0,101190.0,0.847726]
[1734558697840,0.49871205,101210.0,101200.0,0.049439]
[1734558698647,0.49871205,101210.0,101190.0,0.706644]
[1734558698648,0.049439,101200.0,101190.0,0.247041]
[1734558698952,0.50415527,101200.0,101180.0,0.40138643]
[1734558699250,0.049444,101190.0,101180.0,0.4485806]
[1734558699849,0.049444,101190.0,101180.0,0.09664017]
[1734558700149,0.60211605,101200.0,101190.0,0.049444]
[1734558700341,0.24131605,101200.0,101190.0,0.049444]
[1734558700536,0.24131605,101200.0,101190.0,0.09662122]
[1734558700948,0.25246564,101200.0,101190.0,0.09662122]
[1734558701151,0.15384,101200.0,101190.0,0.049444]
[1734558701356,0.05244,101200.0,101190.0,0.09663229]
[1734558701948,0.003,101200.0,101190.0,0.19054856]
[1734558702148,0.003,101200.0,101190.0,0.24576027]
[1734558702349,0.003,101200.0,101190.0,0.65374297]
[1734558702950,0.413239,101200.0,101190.0,0.049444]
[1734558703858,0.410239,101200.0,101190.0,0.049444]
[1734558704152,0.413239,101200.0,101190.0,0.049444]
[1734558704356,0.049445,101190.0,101180.0,0.049445]
[1734558704551,0.410245,101190.0,101180.0,0.09663288]
[1734558704950,0.049445,101190.0,101180.0,0.09663288]
[1734558705650,0.411245,101190.0,101180.0,0.09863288]
[1734558706245,0.001,101190.0,101180.0,0.19254915]
[1734558706450,0.001,101190.0,101180.0,0.55334915]
[1734558706846,0.001,101190.0,101180.0,0.85334915]
[1734558707050,0.08847605,101200.0,101190.0,0.049444]
[1734558707250,0.61675718,101210.0,101200.0,0.049439]
[1734558707456,0.61675718,101210.0,101200.0,0.368839]
[1734558708154,0.25595718,101210.0,101200.0,0.368839]
[1734558708351,0.049435,101210.0,101200.0,0.41602783]
[1734558708655,0.412235,101210.0,101200.0,0.41602783]
[1734558709250,0.412235,101210.0,101200.0,0.368839]
[1734558709770,0.412235,101210.0,101200.0,0.41600085]
[1734558710259,0.052435,101210.0,101200.0,0.41600085]
[1734558712250,0.052435,101210.0,101200.0,0.42623217]
[1734558713051,0.003,101210.0,101200.0,0.88094844]
[1734558715862,0.356522,101240.0,101230.0,0.049424]
[1734558716062,0.72764611,101240.0,101230.0,0.049424]
[1734558716950,0.52894611,101240.0,101230.0,0.049424]
[1734558717554,0.049432,101220.0,101210.0,0.049432]
[1734558717758,0.410232,101220.0,101210.0,0.049432]
[1734558717962,0.50414827,101220.0,101210.0,0.049432]
[1734558718162,1.25886454,101220.0,101190.0,0.36089411]
[1734558718459,0.049439,101200.0,101190.0,0.09652223]
[1734558718665,0.410239,101200.0,101190.0,0.09652223]
[1734558718850,0.609739,101200.0,101190.0,0.09652223]
[1734558719051,0.70365527,101200.0,101190.0,0.04708023]
[1734558719257,0.609739,101200.0,101190.0,9.411e-05]
[1734558720258,0.611739,101200.0,101190.0,0.35030071]
[1734558721157,1.05248115,101200.0,101190.0,0.35030071]
[1734558721558,1.14115232,101200.0,101190.0,9.411e-05]
[1734558721963,1.00041017,101200.0,101190.0,9.411e-05]
[1734558722557,0.8176384,101200.0,101190.0,9.411e-05]
[1734558722759,0.8186384,101200.0,101190.0,9.411e-05]
[1734558723664,0.72896723,101200.0,101190.0,9.411e-05]
[1734558723857,0.72996723,101200.0,101190.0,9.411e-05]
[1734558725368,0.74005249,101200.0,101190.0,9.411e-05]
[1734558728067,0.82875655,101200.0,101190.0,9.411e-05]
[1734558728265,0.049449,101180.0,101160.0,0.3507066]
[1734558728472,1.20659515,101170.0,101160.0,0.30322795]
[1734558728663,1.20659515,101170.0,101160.0,0.30272795]
[1734558728862,1.065853,101170.0,101160.0,0.30272795]
[1734558729365,1.06593642,101170.0,101160.0,0.30272795]
[1734558729566,1.18416465,101170.0,101160.0,0.003]
[1734558729763,1.18416465,101170.0,101160.0,0.0035]
[1734558729962,1.18416465,101170.0,101160.0,0.0015]
[1734558730167,1.18516465,101170.0,101160.0,0.0075]
[1734558730363,1.18516465,101170.0,101160.0,0.0095]
[1734558730564,0.84091165,101170.0,101160.0,0.19970015]
[1734558730763,0.08968082,101170.0,101160.0,0.19920015]
[1734558730966,0.08968082,101170.0,101160.0,0.44611054]
[1734558731167,0.08968082,101170.0,101160.0,0.80691054]
[1734558731767,0.00108342,101170.0,101160.0,0.80741054]
[1734558732159,0.41133642,101170.0,101160.0,0.30586839]
[1734558732369,0.00108342,101170.0,101160.0,0.30586839]
[1734558732672,0.00108342,101170.0,101160.0,0.30536839]
[1734558733177,0.00108342,101170.0,101160.0,0.80691054]
[1734558733368,0.3608,101190.0,101180.0,0.049449]
[1734558734071,0.3608,101190.0,101180.0,0.09696843]
[1734558734467,0.410244,101190.0,101180.0,0.049449]
[1734558735076,0.411244,101190.0,101180.0,0.09693336]
[1734558735773,0.412244,101190.0,101180.0,0.09693336]
[1734558736873,0.412244,101190.0,101180.0,0.19693336]
[1734558737480,0.412244,101190.0,101180.0,0.1]
[1734558737666,0.412244,101190.0,101170.0,0.049453]
[1734558737868,0.049453,101170.0,101160.0,0.349356]
[1734558738073,0.049453,101170.0,101160.0,0.39683564]
[1734558738673,0.049453,101170.0,101160.0,0.348856]
[1734558738874,0.049453,101170.0,101160.0,0.39629906]
[1734558739365,0.049453,101170.0,101160.0,0.40229906]
[1734558739569,0.050453,101170.0,101160.0,0.40529906]
[1734558740875,0.050453,101170.0,101160.0,0.357856]
[1734558741180,0.050453,101170.0,101160.0,0.40529014]
[1734558741575,0.050453,101170.0,101160.0,0.357856]
[1734558743980,0.050453,101170.0,101160.0,0.49917943]
[1734558745283,0.56762563,101190.0,101160.0,1.25383399]
[1734558745481,0.20682563,101190.0,101180.0,0.50410356]
[1734558745879,0.20682563,101190.0,101180.0,0.410249]
[1734558746084,0.20682563,101190.0,101180.0,0.049449]
[1734558746579,0.0895974,101190.0,101180.0,0.049449]
[1734558747290,0.0905974,101190.0,101180.0,0.049449]
[1734558747585,0.002,101190.0,101180.0,0.049449]
[1734558747784,0.001,101190.0,101180.0,0.049449]
[1734558747986,0.001,101190.0,101180.0,0.09728194]
[1734558747987,0.002,101190.0,101180.0,0.09728194]
[1734558749178,0.002,101190.0,101180.0,0.5519365]
[1734558749679,0.002,101190.0,101180.0,0.1911365]
[1734558749889,0.002,101190.0,101180.0,0.20114785]
[1734558750091,0.002,101190.0,101180.0,0.10729329]
[1734558751582,0.051444,101190.0,101180.0,0.09728194]
[1734558755190,0.002,101190.0,101180.0,0.1911365]
[1734558755386,0.002,101190.0,101180.0,0.5519365]
[1734558755986,0.09008045,101200.0,101190.0,0.049444]
[1734558755987,0.0885974,101200.0,101190.0,0.049444]
[1734558756189,0.11872823,101210.0,101190.0,0.049444]
[1734558756190,0.11872823,101210.0,101190.0,1.15018606]
[1734558756491,0.11872823,101210.0,101200.0,0.50409356]
[1734558756693,0.11822823,101210.0,101200.0,0.5519265]
[1734558757786,0.11972823,101210.0,101200.0,0.5519265]
[1734558757985,0.0015,101210.0,101200.0,0.5519265]
[1734558758696,0.002,101210.0,101200.0,0.5519265]
[1734558758994,0.00148249,101230.0,101220.0,0.049429]
[1734558759290,0.00148249,101230.0,101220.0,0.287488]
[1734558759481,0.00148249,101230.0,101220.0,0.648288]
[1734558760091,0.00248249,101230.0,101220.0,0.74214256]
[1734558760394,0.00348249,101230.0,101220.0,0.74214256]
[1734558761591,0.00248249,101230.0,101220.0,0.74214256]
[1734558761796,0.00348249,101230.0,101220.0,0.74214256]
[1734558761998,0.00348249,101230.0,101220.0,0.84314256]
[1734558762303,0.00348249,101230.0,101220.0,0.93834256]
[1734558762993,0.00348249,101230.0,101220.0,0.94877888]
[1734558763191,0.00348249,101230.0,101220.0,0.90107444]
[1734558763398,0.00348249,101230.0,101220.0,0.71201988]
[1734558763588,0.00348249,101230.0,101220.0,0.25736532]
[1734558763787,0.00348249,101230.0,101220.0,0.16086532]
[1734558763996,0.41370649,101230.0,101220.0,0.150429]
[1734558764790,0.41420649,101230.0,101220.0,0.150429]
[1734558765697,0.41370649,101230.0,101220.0,0.150429]
[1734558766696,0.05340649,101230.0,101220.0,0.150429]
[1734558766999,0.41420649,101230.0,101220.0,0.150429]
[1734558767698,0.41370649,101230.0,101220.0,0.150429]
[1734558768689,0.41420649,101230.0,101220.0,0.150429]
[1734558769604,0.412724,101230.0,101220.0,0.150429]
[1734558770694,0.412224,101230.0,101220.0,0.150429]
[1734558772099,0.42219148,101230.0,101220.0,0.150429]
[1734558772498,0.0005,101240.0,101230.0,0.049424]
[1734558772796,0.12822823,101260.0,101250.0,0.049414]
[1734558772998,0.12822823,101260.0,101250.0,0.14326856]
[1734558773301,0.12822823,101260.0,101250.0,0.24356856]
[1734558773689,0.48902823,101260.0,101250.0,0.24356856]
[1734558773888,0.049418,101250.0,101240.0,0.049418]
[1734558774087,0.410218,101250.0,101240.0,0.049418]
[1734558774292,0.310218,101250.0,101240.0,0.049418]
[1734558774700,0.310718,101250.0,101240.0,0.049418]
[1734558775092,0.361136,101250.0,101240.0,0.049418]
[1734558775696,0.360636,101250.0,101240.0,0.049418]
[1734558776698,0.361136,101250.0,101240.0,0.049418]
[1734558777796,0.360636,101250.0,101240.0,0.049418]
[1734558778399,0.311218,101250.0,101240.0,0.049418]
[1734558778606,0.311218,101250.0,101240.0,0.5507992]
[1734558778607,0.002,101250.0,101240.0,0.5507992]
[1734558778906,0.0025,101250.0,101240.0,0.5507992]
[1734558779204,0.0025,101250.0,101240.0,0.6496992]
[1734558779505,0.0015,101250.0,101240.0,0.6974033]
[1734558779701,0.001,101250.0,101240.0,0.6984033]
[1734558780196,0.01,101260.0,101250.0,0.049414]
[1734558780397,0.42021,101260.0,101250.0,0.049414]
[1734558780798,0.42071,101260.0,101250.0,0.049414]
[1734558781195,0.42071,101260.0,101240.0,0.053418]
[1734558781196,0.049414,101250.0,101240.0,0.053418]
[1734558781507,0.507014,101250.0,101240.0,0.052418]
[1734558781709,0.705614,101250.0,101240.0,0.052418]
[1734558782099,0.705614,101250.0,101240.0,0.049418]
[1734558782702,0.706614,101250.0,101240.0,0.049418]
[1734558783404,0.706614,101250.0,101230.0,0.11029502]
[1734558783405,0.049423,101240.0,101230.0,0.049423]
[1734558784823,0.050423,101240.0,101230.0,0.049423]
[1734558785297,0.051423,101240.0,101230.0,0.049423]
[1734558785500,0.049424,101230.0,101220.0,0.05090964]
[1734558785699,0.049424,101230.0,101220.0,0.0986831]
[1734558785913,0.049424,101230.0,101220.0,0.05090964]
[1734558787208,0.3618,101240.0,101230.0,0.049424]
[1734558787399,0.48102823,101240.0,101230.0,0.049424]
[1734558787910,0.48002823,101240.0,101220.0,0.05390964]
[1734558788105,0.410224,101230.0,101220.0,0.05390964]
[1734558788306,0.049424,101230.0,101220.0,0.05490964]
[1734558788612,0.049424,101230.0,101220.0,0.05190964]
[1734558789013,0.049424,101230.0,101220.0,0.05090964]
[1734558790006,0.050424,101230.0,101220.0,0.05090964]
[1734558790507,0.050424,101230.0,101220.0,0.09880465]
[1734558790705,0.051424,101230.0,101220.0,0.09880465]
[1734558791304,0.002,101230.0,101220.0,0.09880465]
[1734558792213,0.051424,101230.0,101220.0,0.09880465]
[1734558795000,0.002,101230.0,101220.0,0.23938585]
[1734558795206,0.002,101230.0,101220.0,0.60018585]
[1734558795411,0.11822823,101240.0,101220.0,0.60018585]
[1734558795613,0.11822823,101240.0,101230.0,0.410224]
[1734558795808,0.11822823,101240.0,101230.0,0.45811901]
[1734558796305,0.11822823,101240.0,101230.0,0.19631901]
[1734558796514,0.11822823,101240.0,101230.0,0.55711901]
[1734558796714,0.42040412,101250.0,101240.0,0.049419]
[1734558796913,0.42040412,101250.0,101240.0,0.09731401]
[1734558797813,0.42140412,101250.0,101240.0,0.09731401]
[1734558798710,0.42140412,101250.0,101240.0,0.19231401]
[1734558799614,0.53963235,101250.0,101240.0,0.19231401]
[1734558799808,0.53963235,101250.0,101240.0,0.04789501]
[1734558800118,0.049419,101240.0,101230.0,0.049423]
[1734558800418,0.049419,101240.0,101230.0,0.09736354]
[1734558801211,0.410219,101240.0,101230.0,0.09836354]
[1734558801518,0.410219,101240.0,101230.0,0.10136354]
[1734558802505,0.411219,101240.0,101230.0,0.09836354]
[1734558802710,0.411219,101240.0,101230.0,0.04894054]
[1734558802919,0.506119,101240.0,101230.0,0.04894054]
[1734558803310,0.506119,101240.0,101230.0,0.04794054]
[1734558804319,0.145319,101240.0,101230.0,0.04794054]
[1734558804517,0.506119,101240.0,101230.0,0.04794054]
[1734558805205,0.599019,101240.0,101230.0,0.04794054]
[1734558806211,0.599019,101240.0,101230.0,0.09736454]
[1734558806518,0.411219,101240.0,101230.0,0.09736454]
[1734558807325,0.050419,101240.0,101230.0,0.09736454]
[1734558807514,0.001,101240.0,101230.0,0.09736454]
[1734558807715,0.001,101240.0,101230.0,0.1911049]
[1734558808420,0.53863435,101250.0,101230.0,0.04794054]
[1734558808714,0.53863435,101250.0,101240.0,0.049419]
[1734558808918,0.53863435,101250.0,101240.0,0.05314923]
[1734558810817,0.53963435,101250.0,101240.0,0.05314923]
[1734558811218,0.53863435,101250.0,101240.0,0.05314923]
[1734558811420,0.63337471,101250.0,101240.0,0.00373023]
[1734558813329,0.68741964,101250.0,101240.0,0.00373023]
[1734558815026,0.78116,101250.0,101240.0,0.00373023]
[1734558815528,0.66293177,101250.0,101240.0,0.00372316]
[1734558816830,0.66293177,101250.0,101230.0,0.049423]
[1734558817125,0.410219,101240.0,101230.0,0.05185672]
[1734558817326,0.50395936,101240.0,101230.0,0.05185672]
[1734558817627,0.59405936,101240.0,101230.0,0.05185672]
[1734558817930,0.71252397,101240.0,101230.0,0.05185672]
[1734558818129,0.71252397,101240.0,101230.0,0.00372548]
[1734558818726,1.01352397,101240.0,101230.0,0.00372548]
[1734558819229,1.04284465,101240.0,101230.0,0.00372548]
[1734558819931,1.04284465,101240.0,101230.0,0.00372291]
[1734558820527,1.04284465,101240.0,101210.0,0.35068588]
[1734558820735,0.86476936,101220.0,101210.0,0.05189719]
[1734558821234,0.86476936,101220.0,101210.0,3.8e-07]
[1734558821422,0.86476936,101220.0,101200.0,0.35266803]
[1734558821423,0.049434,101210.0,101200.0,0.33965981]
[1734558821727,0.59607436,101210.0,101200.0,0.0005]
[1734558821933,0.049439,101200.0,101190.0,0.33927882]
[1734558822123,0.59857936,101200.0,101190.0,0.38748964]
[1734558822324,0.59857936,101200.0,101190.0,0.33927882]
[1734558823130,0.504839,101200.0,101190.0,0.04831436]
[1734558823427,0.52848606,101210.0,101190.0,0.10271114]
[1734558823731,0.62222642,101210.0,101200.0,0.0944]
[1734558823927,0.62222642,101210.0,101200.0,0.0949]
[1734558824326,0.50397636,101210.0,101200.0,0.0949]
[1734558824837,0.50397636,101210.0,101200.0,0.0944]
[1734558825137,0.411236,101210.0,101200.0,0.1014]
[1734558825933,0.411236,101210.0,101200.0,0.1049]
[1734558826236,0.50497636,101210.0,101200.0,0.1049]
[1734558827938,0.50497636,101210.0,101200.0,0.1044]
[1734558828335,0.80497636,101210.0,101200.0,0.01]
[1734558828630,0.81981636,101210.0,101200.0,0.01]
[1734558829239,0.049439,101200.0,101190.0,0.00061901]
[1734558829538,0.69427936,101200.0,101190.0,0.00061901]
[1734558829729,0.049444,101190.0,101180.0,0.0948]
[1734558829929,0.60378436,101190.0,101180.0,0.0948]
[1734558830727,0.60388411,101190.0,101180.0,0.0948]
[1734558831130,0.60388411,101190.0,101180.0,0.0978]
[1734558831635,0.60388411,101190.0,101180.0,0.003]
[1734558831830,0.60388411,101190.0,101180.0,0.004]
[1734558833530,0.60388411,101190.0,101180.0,0.00768983]
[1734558833938,0.60388411,101190.0,101180.0,0.00818983]
[1734558834737,0.60388411,101190.0,101180.0,0.00819526]
[1734558834937,0.60388411,101190.0,101180.0,0.00769526]
[1734558835337,0.6141355,101190.0,101180.0,0.00769526]
[1734558836041,0.6141355,101190.0,101180.0,0.00819526]
[1734558836832,0.6141355,101190.0,101180.0,0.00769526]
[1734558837737,0.6141355,101190.0,101180.0,0.004]
[1734558837927,0.6141355,101190.0,101180.0,0.0045]
[1734558838735,0.6141355,101190.0,101180.0,0.00819057]
[1734558839629,0.5143355,101190.0,101180.0,0.00819057]
[1734558839828,0.42059514,101190.0,101180.0,0.00769057]
[1734558840037,0.42059514,101190.0,101180.0,0.09989057]
[1734558840336,0.42059514,101190.0,101180.0,0.18519057]
[1734558840946,0.5143355,101190.0,101180.0,0.18519057]
[1734558841641,0.53433968,101190.0,101180.0,0.18519057]
[1734558844035,0.42059514,101190.0,101180.0,0.23463957]
[1734558846551,0.049454,101170.0,101160.0,0.0926]
[1734558846740,0.50399436,101170.0,101160.0,0.09631799]
[1734558846944,0.50399436,101170.0,101160.0,0.09681799]
[1734558847649,0.410254,101170.0,101160.0,0.10181799]
[1734558848751,0.411254,101170.0,101160.0,0.10481799]
[1734558849053,0.411254,101170.0,101160.0,0.10431799]
[1734558850553,0.52950406,101170.0,101160.0,0.10431799]
[1734558852365,0.52950406,101170.0,101160.0,0.150058]
[1734558852671,0.16870406,101170.0,101160.0,0.150058]
[1734558852962,0.62324442,101170.0,101160.0,0.1006]
[1734558853267,0.62324442,101170.0,101160.0,0.008]
[1734558854968,0.63309172,101170.0,101160.0,0.008]
[1734558855268,0.51484166,101170.0,101160.0,0.008]
[1734558855467,0.66262695,101170.0,101160.0,0.008]
[1734558855773,0.66272249,101170.0,101160.0,0.008]
[1734558856569,0.84006484,101170.0,101160.0,0.008]
[1734558856966,0.84006484,101170.0,101160.0,0.004]
[1734558857660,0.69227955,101170.0,101160.0,0.004]
[1734558857865,0.049458,101160.0,101150.0,0.08235889]
[1734558858066,0.50399836,101160.0,101150.0,0.08235889]
[1734558858666,0.50399836,101160.0,101150.0,0.08613724]
[1734558858866,0.410258,101160.0,101150.0,0.08613724]
[1734558859067,0.410258,101160.0,101150.0,0.08913724]
[1734558859270,0.411258,101160.0,101150.0,0.09213724]
[1734558859971,0.77115716,101160.0,101150.0,0.09213832]
[1734558860571,0.86489752,101160.0,101150.0,0.09213832]
[1734558860769,0.96409752,101160.0,101150.0,0.00977943]
[1734558860962,1.05569752,101160.0,101150.0,0.00977943]
[1734558861176,0.049463,101150.0,101140.0,0.00011666]
[1734558861361,0.59587653,101150.0,101140.0,0.00011666]
[1734558861565,0.049468,101140.0,101120.0,0.00148332]
[1734558861781,0.86481336,101130.0,101120.0,0.00148332]
[1734558862576,0.98310005,101130.0,101120.0,0.00148332]
[1734558862776,0.049478,101120.0,101110.0,0.2754]
[1734558863075,0.410278,101120.0,101110.0,0.2754]
[1734558863681,0.52856469,101120.0,101110.0,0.2754]
[1734558864573,0.52956469,101120.0,101110.0,0.2754]
[1734558864777,0.411278,101120.0,101110.0,0.2774]
[1734558865979,0.42147521,101120.0,101110.0,0.2774]
[1734558870978,0.42147521,101120.0,101110.0,0.2779]
[1734558871385,0.001,101120.0,101110.0,0.42112336]
[1734558871580,0.47908669,101130.0,101120.0,0.049478]
[1734558871782,0.47908669,101130.0,101120.0,0.14321836]
[1734558871986,0.11828669,101130.0,101120.0,0.44321836]
[1734558872386,0.1178485,101140.0,101130.0,0.049473]
[1734558872582,0.1178485,101140.0,101130.0,0.50401336]
[1734558873084,0.1178485,101140.0,101130.0,0.41403639]
[1734558873482,0.41033717,101150.0,101130.0,0.36456339]
[1734558873686,0.42034987,101150.0,101140.0,0.130868]
[1734558873887,0.42034987,101150.0,101140.0,0.13463139]
[1734558874685,0.42234987,101150.0,101140.0,0.13463139]